[Event "*** Titled Tuesday Blitz"]
[Site "Chess.com"]
[Date "2020.10.27"]
[Round "7"]
[White "RobertoJBM"]
[Black "Paladin61"]
[Result "1-0"]
[WhiteElo "2800"]
[BlackElo "2600"]
[TimeControl "180+1"]
[EndTime "11:19:19 PDT"]
[Termination "RobertoJBM won on time"]

1. d4 {[%clk 0:03:00.9]} 1... Nf6 {[%clk 0:03:00.1]} 2. c4 {[%clk 0:03:00.7]}
2... g6 {[%clk 0:03:00.5]} 3. Nc3 {[%clk 0:03:00.6]} 3... Bg7 {[%clk 0:03:00.9]}
4. e4 {[%clk 0:03:00.3]} 4... d6 {[%clk 0:03:01.3]} 5. f3 {[%clk 0:02:59.8]}
5... O-O {[%clk 0:03:01]} 6. Be3 {[%clk 0:03:00.3]} 6... c5 {[%clk 0:03:00.1]}
7. d5 {[%clk 0:02:54.5]} 7... a6 {[%clk 0:02:46.4]} 8. Qd2 {[%clk 0:02:53.3]}
8... b5 {[%clk 0:02:40]} 9. cxb5 {[%clk 0:02:52.6]} 9... Qa5 {[%clk 0:02:39.7]}
10. a4 {[%clk 0:02:50.8]} 10... Nbd7 {[%clk 0:02:34.2]} 11. Ra3 {[%clk
0:02:50.1]} 11... Nb6 {[%clk 0:02:24.6]} 12. Bd3 {[%clk 0:02:41.8]} 12... e6
{[%clk 0:02:20]} 13. dxe6 {[%clk 0:02:39.3]} 13... Bxe6 {[%clk 0:02:20.9]} 14.
Nge2 {[%clk 0:02:36.1]} 14... Rfd8 {[%clk 0:02:12.4]} 15. O-O {[%clk 0:02:28.5]}
15... Rac8 {[%clk 0:01:48.8]} 16. Nf4 {[%clk 0:02:15.8]} 16... Bc4 {[%clk
0:01:34.6]} 17. Qe2 {[%clk 0:02:11.3]} 17... Be6 {[%clk 0:01:13]} 18. Nxe6
{[%clk 0:02:09.2]} 18... fxe6 {[%clk 0:01:13.8]} 19. bxa6 {[%clk 0:02:09.7]}
19... d5 {[%clk 0:01:14]} 20. exd5 {[%clk 0:02:03.3]} 20... exd5 {[%clk
0:01:14.9]} 21. Bg5 {[%clk 0:01:18.5]} 21... Re8 {[%clk 0:01:12.3]} 22. Qd2
{[%clk 0:01:13.6]} 22... c4 {[%clk 0:00:58.9]} 23. Bb1 {[%clk 0:01:09.1]} 23...
d4 {[%clk 0:00:37.4]} 24. Nb5 {[%clk 0:01:07.3]} 24... c3 {[%clk 0:00:18.8]} 25.
bxc3 {[%clk 0:01:06]} 25... dxc3 {[%clk 0:00:19.7]} 26. Rxc3 {[%clk 0:01:02.6]}
26... Qxa6 {[%clk 0:00:16.6]} 27. Rxc8 {[%clk 0:00:59.2]} 27... Nxc8 {[%clk
0:00:12.8]} 28. Bc2 {[%clk 0:00:55.2]} 28... Qb6+ {[%clk 0:00:07.5]} 29. Kh1
{[%clk 0:00:54.6]} 29... Rd8 {[%clk 0:00:07.8]} 30. Qc3 {[%clk 0:00:46.1]} 30...
Ne7 {[%clk 0:00:07.2]} 31. Qc7 {[%clk 0:00:40.6]} 31... Qe6 {[%clk 0:00:04]} 32.
Bxf6 {[%clk 0:00:27.9]} 32... Bxf6 {[%clk 0:00:03.2]} 33. Be4 {[%clk 0:00:28.2]}
33... Rc8 {[%clk 0:00:02.6]} 34. Qb7 {[%clk 0:00:22.3]} 34... Kf8 {[%clk
0:00:02.4]} 35. Rb1 {[%clk 0:00:15.6]} 35... Rd8 {[%clk 0:00:02.4]} 36. h3
{[%clk 0:00:14.8]} 36... Qa2 {[%clk 0:00:02.3]} 37. Nc7 {[%clk 0:00:12.9]} 37...
Qc4 {[%clk 0:00:01.8]} 38. Qb6 {[%clk 0:00:11.5]} 38... Rc8 {[%clk 0:00:01.6]}
39. Ne6+ {[%clk 0:00:11.6]} 39... Kf7 {[%clk 0:00:02]} 40. Nf4 {[%clk
0:00:12.1]} 1-0

[Event "*** Titled Tuesday Blitz"]
[Site "Chess.com"]
[Date "2020.10.27"]
[Round "7"]
[White "Korchmar_Vasiliy"]
[Black "FontVella8"]
[Result "1-0"]
[WhiteElo "2605"]
[BlackElo "2478"]
[TimeControl "180+1"]
[EndTime "11:19:19 PDT"]
[Termination "Korchmar_Vasiliy won by resignation"]

1. e4 {[%clk 0:03:00.9]} 1... e5 {[%clk 0:02:56.1]} 2. Nf3 {[%clk 0:03:00.7]}
2... Nc6 {[%clk 0:02:56.6]} 3. Nc3 {[%clk 0:03:01.2]} 3... Nf6 {[%clk
0:02:56.5]} 4. Bb5 {[%clk 0:03:01.6]} 4... Bc5 {[%clk 0:02:56.4]} 5. O-O {[%clk
0:02:53.8]} 5... Nd4 {[%clk 0:02:51.5]} 6. Nxe5 {[%clk 0:02:45.2]} 6... Nxb5
{[%clk 0:02:51.4]} 7. Nxb5 {[%clk 0:02:45.7]} 7... O-O {[%clk 0:02:30.2]} 8. d4
{[%clk 0:02:44.8]} 8... Be7 {[%clk 0:02:30]} 9. Nc3 {[%clk 0:02:42.4]} 9... d5
{[%clk 0:02:26.7]} 10. exd5 {[%clk 0:02:35.1]} 10... Nxd5 {[%clk 0:02:27.6]} 11.
Nxd5 {[%clk 0:02:32.7]} 11... Qxd5 {[%clk 0:02:28.5]} 12. c4 {[%clk 0:02:32.5]}
12... Qd6 {[%clk 0:02:25.6]} 13. Bf4 {[%clk 0:02:23.3]} 13... Bf5 {[%clk
0:02:22]} 14. Bg3 {[%clk 0:02:19.2]} 14... Qf6 {[%clk 0:02:02.3]} 15. Qf3 {[%clk
0:02:17]} 15... c6 {[%clk 0:02:01.7]} 16. Rfe1 {[%clk 0:02:14.7]} 16... Rad8
{[%clk 0:02:01.5]} 17. Rad1 {[%clk 0:02:07.4]} 17... Bb4 {[%clk 0:01:58.4]} 18.
Re3 {[%clk 0:02:04.6]} 18... Bc2 {[%clk 0:01:47.3]} 19. Rc1 {[%clk 0:01:56.5]}
19... Bf5 {[%clk 0:01:23.4]} 20. Rd1 {[%clk 0:01:48.9]} 20... Bc2 {[%clk
0:01:22.8]} 21. Rc1 {[%clk 0:01:48.2]} 21... Bf5 {[%clk 0:01:18.9]} 22. Rb3
{[%clk 0:01:44]} 22... a5 {[%clk 0:01:01.7]} 23. a3 {[%clk 0:01:42.7]} 23... Bd2
{[%clk 0:01:01.5]} 24. Rd1 {[%clk 0:01:41.8]} 24... Rxd4 {[%clk 0:01:01.7]} 25.
Rxb7 {[%clk 0:01:36.2]} 25... Bc2 {[%clk 0:00:56.6]} 26. Rf1 {[%clk 0:01:27.5]}
26... c5 {[%clk 0:00:14.2]} 27. Qxf6 {[%clk 0:01:21.3]} 27... gxf6 {[%clk
0:00:14.1]} 28. Nf3 {[%clk 0:01:22.2]} 28... Rd3 {[%clk 0:00:13.3]} 29. Rb5
{[%clk 0:01:13]} 29... a4 {[%clk 0:00:09]} 30. Rxc5 {[%clk 0:01:05.2]} 30... Bb3
{[%clk 0:00:09.4]} 31. Rc6 {[%clk 0:00:58.8]} 31... f5 {[%clk 0:00:05.9]} 32.
Be5 {[%clk 0:00:58]} 32... Re8 {[%clk 0:00:05.1]} 33. Bf6 {[%clk 0:00:52.7]}
33... Bh6 {[%clk 0:00:03.6]} 34. Bc3 {[%clk 0:00:49.5]} 34... Bg7 {[%clk
0:00:03.9]} 35. Bxg7 {[%clk 0:00:39.6]} 35... Kxg7 {[%clk 0:00:04.8]} 36. Nh4
{[%clk 0:00:40.4]} 36... f6 {[%clk 0:00:02.2]} 37. Nxf5+ {[%clk 0:00:40.2]}
37... Kg6 {[%clk 0:00:02.9]} 38. Ne3 {[%clk 0:00:40.6]} 38... Rd2 {[%clk
0:00:02.6]} 39. Nd5 {[%clk 0:00:40.8]} 39... Rf8 {[%clk 0:00:01.6]} 40. Nf4+
{[%clk 0:00:41]} 40... Kg7 {[%clk 0:00:02]} 41. Ne6+ {[%clk 0:00:40.9]} 41...
Kf7 {[%clk 0:00:02.2]} 42. Nxf8 {[%clk 0:00:41.8]} 42... Kxf8 {[%clk 0:00:02.7]}
43. Rxf6+ {[%clk 0:00:42.5]} 43... Ke7 {[%clk 0:00:03.4]} 44. Rh6 {[%clk
0:00:40.9]} 44... Rxb2 {[%clk 0:00:04.3]} 45. Rxh7+ {[%clk 0:00:41.2]} 45... Kd6
{[%clk 0:00:05]} 46. h4 {[%clk 0:00:41.9]} 46... Ra2 {[%clk 0:00:05.3]} 47. h5
{[%clk 0:00:42.5]} 47... Rxa3 {[%clk 0:00:06.2]} 48. h6 {[%clk 0:00:40.1]} 48...
Bxc4 {[%clk 0:00:06.7]} 49. Rd1+ {[%clk 0:00:39.7]} 49... Ke5 {[%clk 0:00:05.8]}
50. Re7+ {[%clk 0:00:40]} 50... Kf6 {[%clk 0:00:05.7]} 51. h7 {[%clk 0:00:40.9]}
51... Kxe7 {[%clk 0:00:04]} 52. h8=Q {[%clk 0:00:41.8]} 52... Bf7 {[%clk
0:00:03.9]} 53. Qd8+ {[%clk 0:00:41.9]} 53... Ke6 {[%clk 0:00:03.8]} 54. Qd6+
{[%clk 0:00:42.4]} 1-0

[Event "*** Titled Tuesday Blitz"]
[Site "Chess.com"]
[Date "2020.10.27"]
[Round "7"]
[White "Semen_Khanin"]
[Black "kuli4ik"]
[Result "1/2-1/2"]
[WhiteElo "2778"]
[BlackElo "2885"]
[TimeControl "180+1"]
[EndTime "11:19:20 PDT"]
[Termination "Game drawn by agreement"]

1. e4 {[%clk 0:03:00.9]} 1... e6 {[%clk 0:02:59.8]} 2. d4 {[%clk 0:03:01.2]}
2... d5 {[%clk 0:03:00.7]} 3. e5 {[%clk 0:03:01.8]} 3... c5 {[%clk 0:02:59.9]}
4. c3 {[%clk 0:03:02.3]} 4... Ne7 {[%clk 0:03:00.4]} 5. Bd3 {[%clk 0:03:00.2]}
5... Nec6 {[%clk 0:03:00.6]} 6. Nf3 {[%clk 0:02:59.9]} 6... b6 {[%clk
0:03:00.9]} 7. Qe2 {[%clk 0:02:56.7]} 7... a5 {[%clk 0:03:00.8]} 8. a4 {[%clk
0:02:55.2]} 8... Ba6 {[%clk 0:02:58.8]} 9. Bb5 {[%clk 0:02:52.6]} 9... Qd7
{[%clk 0:02:57.1]} 10. Na3 {[%clk 0:02:51.8]} 10... Bxb5 {[%clk 0:02:49.1]} 11.
Nxb5 {[%clk 0:02:51.6]} 11... Be7 {[%clk 0:02:43.9]} 12. h4 {[%clk 0:02:51.7]}
12... cxd4 {[%clk 0:02:41.5]} 13. Nfxd4 {[%clk 0:02:51.3]} 13... Nxd4 {[%clk
0:02:40.4]} 14. Nxd4 {[%clk 0:02:46.1]} 14... Nc6 {[%clk 0:02:40.5]} 15. h5
{[%clk 0:02:13.4]} 15... Nxd4 {[%clk 0:02:39.8]} 16. cxd4 {[%clk 0:02:13.8]}
16... Bb4+ {[%clk 0:02:26]} 17. Kf1 {[%clk 0:02:01.2]} 17... O-O-O {[%clk
0:02:18.3]} 18. h6 {[%clk 0:01:58.4]} 18... g6 {[%clk 0:02:15.1]} 19. g3 {[%clk
0:01:54.3]} 19... Kb7 {[%clk 0:02:15]} 20. Kg2 {[%clk 0:01:54.2]} 20... Rc8
{[%clk 0:02:15.4]} 21. Bg5 {[%clk 0:01:50.5]} 21... Rc4 {[%clk 0:02:12.8]} 22.
b3 {[%clk 0:01:26.8]} 22... Rxd4 {[%clk 0:02:10.3]} 23. f3 {[%clk 0:01:27.2]}
23... Bc5 {[%clk 0:01:47.8]} 24. Bd2 {[%clk 0:01:20.9]} 24... Rd8 {[%clk
0:01:04.1]} 25. Bc3 {[%clk 0:01:14.8]} 25... Rb4 {[%clk 0:01:04.1]} 26. Bxb4
{[%clk 0:01:13.9]} 26... Bxb4 {[%clk 0:01:05]} 27. Rac1 {[%clk 0:01:04.6]} 27...
d4 {[%clk 0:01:05]} 28. Qd3 {[%clk 0:01:03.8]} 28... Qd5 {[%clk 0:01:03.8]} 29.
Qc4 {[%clk 0:00:28.8]} 29... Qxc4 {[%clk 0:00:53.9]} 30. Rxc4 {[%clk 0:00:28.8]}
30... d3 {[%clk 0:00:54.8]} 31. Rd1 {[%clk 0:00:29]} 31... d2 {[%clk 0:00:49]}
32. Kf2 {[%clk 0:00:29.3]} 32... Rd5 {[%clk 0:00:35]} 33. Rf4 {[%clk 0:00:26.9]}
33... Rd7 {[%clk 0:00:34.9]} 34. Ke2 {[%clk 0:00:26.9]} 34... Kc6 {[%clk
0:00:28.1]} 35. Rc4+ {[%clk 0:00:25.8]} 35... Kb7 {[%clk 0:00:24.2]} 36. f4
{[%clk 0:00:21.3]} 36... Rd8 {[%clk 0:00:16.7]} 37. g4 {[%clk 0:00:16.7]} 37...
Rd7 {[%clk 0:00:15.8]} 38. g5 {[%clk 0:00:13.3]} 38... Rd5 {[%clk 0:00:15.7]}
39. Rxb4 {[%clk 0:00:10.3]} 39... axb4 {[%clk 0:00:15.4]} 40. Rxd2 {[%clk
0:00:10.7]} 40... Rxd2+ {[%clk 0:00:09.5]} 41. Kxd2 {[%clk 0:00:11]} 41... Kc6
{[%clk 0:00:09.9]} 42. Kd3 {[%clk 0:00:11]} 42... Kd5 {[%clk 0:00:09.9]} 43. Ke3
{[%clk 0:00:11.5]} 1/2-1/2

[Event "*** Titled Tuesday Blitz"]
[Site "Chess.com"]
[Date "2020.10.27"]
[Round "7"]
[White "Kobalia"]
[Black "doons21"]
[Result "0-1"]
[WhiteElo "2731"]
[BlackElo "2570"]
[TimeControl "180+1"]
[EndTime "11:19:20 PDT"]
[Termination "doons21 won on time"]

1. e4 {[%clk 0:03:00.9]} 1... e6 {[%clk 0:03:00.1]} 2. d4 {[%clk 0:02:59.7]}
2... d5 {[%clk 0:03:01]} 3. Nc3 {[%clk 0:03:00.3]} 3... Bb4 {[%clk 0:03:00.7]}
4. e5 {[%clk 0:03:00.5]} 4... Ne7 {[%clk 0:03:00.7]} 5. a3 {[%clk 0:03:00.6]}
5... Bxc3+ {[%clk 0:03:00.9]} 6. bxc3 {[%clk 0:03:01.5]} 6... c5 {[%clk
0:03:01.6]} 7. a4 {[%clk 0:03:01.9]} 7... Qc7 {[%clk 0:02:57.9]} 8. Nf3 {[%clk
0:03:00.6]} 8... b6 {[%clk 0:02:50.7]} 9. Bb5+ {[%clk 0:02:59.8]} 9... Bd7
{[%clk 0:02:42.2]} 10. Bd3 {[%clk 0:02:59.9]} 10... Nbc6 {[%clk 0:02:42.5]} 11.
O-O {[%clk 0:02:57]} 11... Na5 {[%clk 0:02:42.1]} 12. Re1 {[%clk 0:02:54.7]}
12... h6 {[%clk 0:02:41.9]} 13. Nh4 {[%clk 0:02:46.1]} 13... cxd4 {[%clk
0:02:22.6]} 14. cxd4 {[%clk 0:02:45.7]} 14... Qc3 {[%clk 0:02:22.7]} 15. Be3
{[%clk 0:02:42.1]} 15... g5 {[%clk 0:02:02.5]} 16. Nf3 {[%clk 0:02:41.2]} 16...
Nc4 {[%clk 0:02:01.2]} 17. h3 {[%clk 0:02:11.3]} 17... Rc8 {[%clk 0:01:54.6]}
18. Qe2 {[%clk 0:02:08]} 18... Nf5 {[%clk 0:01:33.7]} 19. a5 {[%clk 0:01:42.7]}
19... bxa5 {[%clk 0:01:25]} 20. Rab1 {[%clk 0:01:41.9]} 20... a4 {[%clk
0:01:14]} 21. Rb7 {[%clk 0:01:40.7]} 21... Qa5 {[%clk 0:01:01.1]} 22. Nh2 {[%clk
0:01:23]} 22... Bc6 {[%clk 0:00:46.4]} 23. Rbb1 {[%clk 0:01:20.6]} 23... Nfxe3
{[%clk 0:00:22.3]} 24. fxe3 {[%clk 0:01:19.8]} 24... h5 {[%clk 0:00:22.8]} 25.
Qf2 {[%clk 0:01:10]} 25... Qd8 {[%clk 0:00:16.1]} 26. Rf1 {[%clk 0:01:07.9]}
26... Qe7 {[%clk 0:00:16.4]} 27. Nf3 {[%clk 0:01:02.9]} 27... g4 {[%clk
0:00:15]} 28. Ng5 {[%clk 0:00:25.9]} 28... Qxg5 {[%clk 0:00:13.8]} 29. Qxf7+
{[%clk 0:00:25.9]} 29... Kd8 {[%clk 0:00:14.4]} 30. Qxe6 {[%clk 0:00:26.3]}
30... gxh3 {[%clk 0:00:13.1]} 31. Rf2 {[%clk 0:00:19.5]} 31... Re8 {[%clk
0:00:12.7]} 32. Qf7 {[%clk 0:00:17.7]} 32... Nxe3 {[%clk 0:00:10.9]} 33. Bg6
{[%clk 0:00:08]} 33... Nxg2 {[%clk 0:00:06.3]} 34. Kh2 {[%clk 0:00:07.8]} 34...
Rc7 {[%clk 0:00:04.5]} 35. Rb8+ {[%clk 0:00:04.6]} 35... Rc8 {[%clk 0:00:05]}
36. Rb7 {[%clk 0:00:03.6]} 36... h4 {[%clk 0:00:01.1]} 0-1

[Event "*** Titled Tuesday Blitz"]
[Site "Chess.com"]
[Date "2020.10.27"]
[Round "7"]
[White "Ajedrez_con_German"]
[Black "Lagmantr"]
[Result "0-1"]
[WhiteElo "2552"]
[BlackElo "2747"]
[TimeControl "180+1"]
[EndTime "11:19:21 PDT"]
[Termination "Lagmantr won by resignation"]

1. d4 {[%clk 0:03:00.9]} 1... Nf6 {[%clk 0:02:50.8]} 2. Bf4 {[%clk 0:02:59.6]}
2... c5 {[%clk 0:02:50.8]} 3. e3 {[%clk 0:02:55.4]} 3... d5 {[%clk 0:02:50]} 4.
c3 {[%clk 0:02:53.8]} 4... Nc6 {[%clk 0:02:50.4]} 5. Nd2 {[%clk 0:02:53.6]} 5...
g6 {[%clk 0:02:46.4]} 6. Ngf3 {[%clk 0:02:49.1]} 6... Bg7 {[%clk 0:02:46.6]} 7.
Be2 {[%clk 0:02:41.8]} 7... O-O {[%clk 0:02:45.8]} 8. O-O {[%clk 0:02:41.7]}
8... b6 {[%clk 0:02:44.2]} 9. Ne5 {[%clk 0:02:40]} 9... Nxe5 {[%clk 0:02:43.2]}
10. Bxe5 {[%clk 0:02:39.6]} 10... Bb7 {[%clk 0:02:42.5]} 11. Re1 {[%clk
0:02:38.9]} 11... e6 {[%clk 0:02:40]} 12. Qa4 {[%clk 0:02:35.2]} 12... a6 {[%clk
0:02:24.5]} 13. Rad1 {[%clk 0:02:30.4]} 13... b5 {[%clk 0:02:15.6]} 14. Qc2
{[%clk 0:02:29.4]} 14... c4 {[%clk 0:02:13.9]} 15. Bf3 {[%clk 0:02:12.5]} 15...
Qa5 {[%clk 0:02:05.7]} 16. a3 {[%clk 0:02:07]} 16... Qa4 {[%clk 0:02:05.9]} 17.
Qxa4 {[%clk 0:01:33.4]} 17... bxa4 {[%clk 0:02:06.8]} 18. Bxf6 {[%clk
0:01:32.5]} 18... Bxf6 {[%clk 0:02:07.1]} 19. e4 {[%clk 0:01:33]} 19... Rab8
{[%clk 0:02:04.2]} 20. Re2 {[%clk 0:01:14.6]} 20... Bg5 {[%clk 0:01:59.3]} 21.
exd5 {[%clk 0:01:11.6]} 21... Bxd5 {[%clk 0:01:59.3]} 22. Bxd5 {[%clk
0:01:04.2]} 22... exd5 {[%clk 0:01:59.7]} 23. g3 {[%clk 0:00:55.5]} 23... Rxb2
{[%clk 0:01:57.4]} 24. f4 {[%clk 0:00:54.8]} 24... Bf6 {[%clk 0:01:55.9]} 25.
Kf1 {[%clk 0:00:43.1]} 25... Rfb8 {[%clk 0:01:53.6]} 26. Nf3 {[%clk 0:00:39.5]}
26... Rxe2 {[%clk 0:01:49.1]} 27. Kxe2 {[%clk 0:00:39.8]} 27... Rb3 {[%clk
0:01:49.5]} 28. Rc1 {[%clk 0:00:35.2]} 28... Rxa3 {[%clk 0:01:49.1]} 29. Ne5
{[%clk 0:00:35.6]} 29... Ra2+ {[%clk 0:01:42.7]} 30. Ke3 {[%clk 0:00:33.3]}
30... Kg7 {[%clk 0:01:36.1]} 31. Nd7 {[%clk 0:00:29.6]} 31... Rxh2 {[%clk
0:01:33.7]} 32. Nb6 {[%clk 0:00:29.6]} 32... a3 {[%clk 0:01:32]} 33. Nxd5 {[%clk
0:00:27.8]} 33... a2 {[%clk 0:01:32.1]} 34. Nxf6 {[%clk 0:00:25]} 34... Kxf6
{[%clk 0:01:31.4]} 35. Ke4 {[%clk 0:00:25.6]} 35... Rc2 {[%clk 0:01:16.2]} 36.
Ra1 {[%clk 0:00:25.6]} 36... h5 {[%clk 0:01:00.3]} 37. d5 {[%clk 0:00:24]} 37...
Rd2 {[%clk 0:00:53.8]} 38. Ke3 {[%clk 0:00:17.6]} 38... Rxd5 {[%clk 0:00:53.3]}
39. Rxa2 {[%clk 0:00:17.5]} 39... Rd3+ {[%clk 0:00:53.4]} 40. Ke4 {[%clk
0:00:17.7]} 40... Rxc3 {[%clk 0:00:53.6]} 41. Rxa6+ {[%clk 0:00:17.9]} 41... Kg7
{[%clk 0:00:53.9]} 42. f5 {[%clk 0:00:10.7]} 42... Rxg3 {[%clk 0:00:54.2]} 43.
f6+ {[%clk 0:00:10.8]} 43... Kh6 {[%clk 0:00:48.8]} 44. Ra7 {[%clk 0:00:10]}
44... g5 {[%clk 0:00:48.3]} 45. Rxf7 {[%clk 0:00:09.4]} 45... Kg6 {[%clk
0:00:48.7]} 46. Rf8 {[%clk 0:00:09.8]} 46... c3 {[%clk 0:00:48.6]} 47. Ke5
{[%clk 0:00:07.5]} 47... Re3+ {[%clk 0:00:47.1]} 48. Kd4 {[%clk 0:00:07.7]}
48... Re6 {[%clk 0:00:43.5]} 49. f7 {[%clk 0:00:06.8]} 49... c2 {[%clk
0:00:40.6]} 50. Re8 {[%clk 0:00:02.6]} 50... Kxf7 {[%clk 0:00:38.5]} 51. Rc8
{[%clk 0:00:02]} 0-1

[Event "*** Titled Tuesday Blitz"]
[Site "Chess.com"]
[Date "2020.10.27"]
[Round "7"]
[White "Shubinkirill2003"]
[Black "Fh2411"]
[Result "1-0"]
[WhiteElo "2676"]
[BlackElo "2520"]
[TimeControl "180+1"]
[EndTime "11:19:21 PDT"]
[Termination "Shubinkirill2003 won by resignation"]

1. e4 {[%clk 0:03:00.9]} 1... c5 {[%clk 0:02:49]} 2. Nf3 {[%clk 0:03:00.5]} 2...
e6 {[%clk 0:02:49.5]} 3. g3 {[%clk 0:03:00.2]} 3... b6 {[%clk 0:02:45.9]} 4. Bg2
{[%clk 0:02:59.7]} 4... Bb7 {[%clk 0:02:46.5]} 5. Nc3 {[%clk 0:02:59.5]} 5...
Nf6 {[%clk 0:02:46.8]} 6. e5 {[%clk 0:02:59.5]} 6... Nd5 {[%clk 0:02:46.7]} 7.
O-O {[%clk 0:02:59.4]} 7... Be7 {[%clk 0:02:45.5]} 8. Re1 {[%clk 0:02:57.5]}
8... O-O {[%clk 0:02:45]} 9. d4 {[%clk 0:02:46]} 9... d6 {[%clk 0:02:39.6]} 10.
exd6 {[%clk 0:02:39.8]} 10... Bxd6 {[%clk 0:02:40.5]} 11. Ne4 {[%clk 0:02:40]}
11... Be7 {[%clk 0:02:30.5]} 12. c4 {[%clk 0:02:38.3]} 12... Nf6 {[%clk
0:02:29]} 13. Nxf6+ {[%clk 0:02:36.5]} 13... Bxf6 {[%clk 0:02:29.9]} 14. dxc5
{[%clk 0:02:36.8]} 14... bxc5 {[%clk 0:02:30.5]} 15. Bf4 {[%clk 0:02:24.7]}
15... Nc6 {[%clk 0:02:20.2]} 16. Bd6 {[%clk 0:02:18.9]} 16... Be7 {[%clk
0:02:19.1]} 17. Bxe7 {[%clk 0:02:17.6]} 17... Qxe7 {[%clk 0:02:20]} 18. Qa4
{[%clk 0:02:17]} 18... Rfd8 {[%clk 0:01:59]} 19. Rad1 {[%clk 0:02:12.6]} 19...
Nd4 {[%clk 0:01:56.6]} 20. Nxd4 {[%clk 0:02:07.2]} 20... cxd4 {[%clk 0:01:55.7]}
21. Bxb7 {[%clk 0:02:02.7]} 21... Qxb7 {[%clk 0:01:56.6]} 22. b4 {[%clk
0:02:02.9]} 22... f6 {[%clk 0:01:46.7]} 23. Rxe6 {[%clk 0:01:58]} 23... d3
{[%clk 0:01:34.7]} 24. Re3 {[%clk 0:01:49.7]} 24... Qf7 {[%clk 0:01:19.4]} 25.
Qb3 {[%clk 0:01:41.2]} 25... d2 {[%clk 0:01:18.7]} 26. c5 {[%clk 0:01:37.9]}
26... Rd5 {[%clk 0:01:15]} 27. Rd3 {[%clk 0:01:19.5]} 27... Rxd3 {[%clk
0:01:10.6]} 28. Qxd3 {[%clk 0:01:20.4]} 28... Qxa2 {[%clk 0:01:08.4]} 29. Rxd2
{[%clk 0:01:19.6]} 29... Qa1+ {[%clk 0:01:05.2]} 30. Rd1 {[%clk 0:01:16.1]}
30... Qe5 {[%clk 0:01:02.2]} 31. c6 {[%clk 0:01:14.4]} 31... h5 {[%clk
0:00:56.2]} 32. Qd7 {[%clk 0:01:06.8]} 32... Rf8 {[%clk 0:00:43.9]} 33. c7
{[%clk 0:01:04.8]} 33... Qc3 {[%clk 0:00:43.9]} 34. Qd5+ {[%clk 0:00:58.5]}
34... Rf7 {[%clk 0:00:37.2]} 35. Qd8+ {[%clk 0:00:57.4]} 35... Rf8 {[%clk
0:00:37.3]} 36. Qxf8+ {[%clk 0:00:51]} 36... Kxf8 {[%clk 0:00:38.2]} 37. Rd8+
{[%clk 0:00:51.1]} 37... Kf7 {[%clk 0:00:37.8]} 38. c8=Q {[%clk 0:00:52]} 38...
Qe1+ {[%clk 0:00:38.3]} 39. Kg2 {[%clk 0:00:51.7]} 39... Qe4+ {[%clk 0:00:38.6]}
40. Kf1 {[%clk 0:00:51.5]} 40... Qb1+ {[%clk 0:00:31.2]} 41. Ke2 {[%clk
0:00:51.5]} 41... Qe4+ {[%clk 0:00:31.8]} 42. Kd1 {[%clk 0:00:49.1]} 42... Qb1+
{[%clk 0:00:28.2]} 43. Qc1 {[%clk 0:00:45.6]} 43... Qxb4 {[%clk 0:00:21.4]} 44.
Qc7+ {[%clk 0:00:40.3]} 44... Kg6 {[%clk 0:00:20.5]} 45. Qc2+ {[%clk 0:00:40.7]}
45... Kf7 {[%clk 0:00:19.6]} 46. Qd3 {[%clk 0:00:32.8]} 46... Qa4+ {[%clk
0:00:14.9]} 47. Ke2 {[%clk 0:00:31.9]} 47... Qa2+ {[%clk 0:00:13.5]} 48. Kf1
{[%clk 0:00:31.7]} 48... Qa1+ {[%clk 0:00:09.7]} 49. Kg2 {[%clk 0:00:31.7]}
49... h4 {[%clk 0:00:10.2]} 50. Rd7+ {[%clk 0:00:24.9]} 1-0

[Event "*** Titled Tuesday Blitz"]
[Site "Chess.com"]
[Date "2020.10.27"]
[Round "7"]
[White "PowerThinking2650"]
[Black "Matols"]
[Result "1-0"]
[WhiteElo "2394"]
[BlackElo "2241"]
[TimeControl "180+1"]
[EndTime "11:19:21 PDT"]
[Termination "PowerThinking2650 won on time"]

1. e4 {[%clk 0:03:00.9]} 1... e6 {[%clk 0:02:59.7]} 2. d4 {[%clk 0:03:00.3]}
2... d5 {[%clk 0:02:59.8]} 3. Nd2 {[%clk 0:03:01]} 3... c5 {[%clk 0:02:58.8]} 4.
Ngf3 {[%clk 0:03:00.6]} 4... cxd4 {[%clk 0:02:58.5]} 5. exd5 {[%clk 0:03:00.6]}
5... Qxd5 {[%clk 0:02:58.6]} 6. Bc4 {[%clk 0:03:01.3]} 6... Qd6 {[%clk
0:02:58.8]} 7. O-O {[%clk 0:02:59.1]} 7... Nf6 {[%clk 0:02:59]} 8. Nb3 {[%clk
0:02:58.7]} 8... Nc6 {[%clk 0:02:58.8]} 9. Nbxd4 {[%clk 0:02:58.5]} 9... Nxd4
{[%clk 0:02:59]} 10. Nxd4 {[%clk 0:02:59.4]} 10... a6 {[%clk 0:02:59.4]} 11. a4
{[%clk 0:02:46.4]} 11... Qc7 {[%clk 0:02:57.5]} 12. b3 {[%clk 0:02:46.4]} 12...
Bd6 {[%clk 0:02:55.9]} 13. Nf3 {[%clk 0:02:43.6]} 13... O-O {[%clk 0:02:49.7]}
14. Bb2 {[%clk 0:02:43.3]} 14... e5 {[%clk 0:02:44.8]} 15. h3 {[%clk 0:02:31.6]}
15... Bf5 {[%clk 0:02:39]} 16. Re1 {[%clk 0:02:22.6]} 16... Rfe8 {[%clk
0:02:38.2]} 17. Nh4 {[%clk 0:02:14]} 17... Bd7 {[%clk 0:02:26.2]} 18. Re3 {[%clk
0:01:35.4]} 18... Rad8 {[%clk 0:02:24]} 19. Qe2 {[%clk 0:01:28.7]} 19... g6
{[%clk 0:01:18.2]} 20. Re1 {[%clk 0:01:21.8]} 20... Nh5 {[%clk 0:01:03.5]} 21.
Bxe5 {[%clk 0:01:09.9]} 21... Bxe5 {[%clk 0:00:57.6]} 22. Rxe5 {[%clk
0:01:07.5]} 22... Nf4 {[%clk 0:00:54.7]} 23. Qe4 {[%clk 0:01:00.4]} 23... Rxe5
{[%clk 0:00:25.9]} 24. Qxe5 {[%clk 0:01:00.3]} 24... Qxe5 {[%clk 0:00:26]} 25.
Rxe5 {[%clk 0:01:01.2]} 25... Be6 {[%clk 0:00:26.1]} 26. Bxe6 {[%clk 0:00:53.1]}
26... Nxe6 {[%clk 0:00:26.1]} 27. Nf3 {[%clk 0:00:51.1]} 27... Rd1+ {[%clk
0:00:25.2]} 28. Re1 {[%clk 0:00:50.5]} 28... Rd6 {[%clk 0:00:24]} 29. Kf1 {[%clk
0:00:46.8]} 29... Kf8 {[%clk 0:00:23.5]} 30. g3 {[%clk 0:00:47]} 30... Ke7
{[%clk 0:00:21.5]} 31. Ng5 {[%clk 0:00:46.9]} 31... Rd2 {[%clk 0:00:18.5]} 32.
Nxe6 {[%clk 0:00:46.1]} 32... fxe6 {[%clk 0:00:18.2]} 33. Re2 {[%clk 0:00:46.7]}
33... Rd1+ {[%clk 0:00:18.2]} 34. Kg2 {[%clk 0:00:46.9]} 34... Kd6 {[%clk
0:00:17.6]} 35. h4 {[%clk 0:00:46.3]} 35... e5 {[%clk 0:00:16.8]} 36. Kf3 {[%clk
0:00:45.2]} 36... Kd5 {[%clk 0:00:16.5]} 37. Ke3 {[%clk 0:00:45.4]} 37... Rc1
{[%clk 0:00:14]} 38. Rd2+ {[%clk 0:00:44.1]} 38... Ke6 {[%clk 0:00:13.8]} 39.
Kd3 {[%clk 0:00:42.5]} 39... Rf1 {[%clk 0:00:11.9]} 40. Kc4 {[%clk 0:00:39.5]}
40... Re1 {[%clk 0:00:10]} 41. Kc5 {[%clk 0:00:39.2]} 41... Re4 {[%clk
0:00:09.2]} 42. c4 {[%clk 0:00:38.1]} 42... Re1 {[%clk 0:00:06.8]} 43. a5 {[%clk
0:00:37.1]} 43... Rb1 {[%clk 0:00:06.6]} 44. b4 {[%clk 0:00:37.3]} 44... e4
{[%clk 0:00:05]} 45. Rd6+ {[%clk 0:00:30.7]} 45... Ke5 {[%clk 0:00:04.8]} 46.
Rb6 {[%clk 0:00:30.1]} 46... Rb2 {[%clk 0:00:03]} 47. Rxb7 {[%clk 0:00:28.5]}
47... Rxf2 {[%clk 0:00:02.9]} 48. Re7+ {[%clk 0:00:28.5]} 1-0